[Event "CZE-tht Extraliga 2018-19"]
[Site "Czech Republic"]
[Date "2018.11.03"]
[Round "1"]
[White "Vyskocil, Neklan"]
[Black "Cech, Pavel"]
[Result "1/2-1/2"]
[ECO "C06"]
[WhiteElo "2315"]
[BlackElo "2332"]
[Annotator "NA RC"]
[PlyCount "132"]
[EventDate "2018.11.03"]
[EventType "team-tourn"]
[EventCountry "CZE"]
[SourceTitle "playchess.com"]
[Source "ChessBase"]
[SourceQuality "1"]
[WhiteTeam "SK DURAS BVK Kralovo Pole"]
[BlackTeam "SK ZIKUDA Turnov"]
[TimeControl "40/5400+30:1800+30"]

1. e4 {[%emt 0:00:00]} e6 {[%emt 0:00:00]} 2. d4 {[%emt 0:00:22]} d5 {[%emt 0:00:00]} 3. Nd2 {[%emt 0:00:48]} Nf6 {[%emt 0:00:00]} 4. e5 {[%emt 0:00:23]} Nfd7 {[%emt 0:00:02]} 5. Bd3 {[%emt 0:01:27]} c5 {[%emt 0:00:09]} 6. c3 {[%emt 0:00:17]} Nc6 {[%emt 0:00:06]} 7. Ne2 {[%emt 0:00:43]} cxd4 {[%emt 0:00:08]} 8. cxd4 {[%emt 0:00:22]} f6 {[%emt 0:00:05]} 9. exf6 {[%emt 0:00:43]} Nxf6 {[%emt 0:08:01]} 10. O-O {[%emt 0:01:03]} Bd6 {[%emt 0:00:06]} 11. Nf3 {[%emt 0:00:50]} Qc7 {[%emt 0:00:12]} 12. Bg5 {[%emt 0:02:37]} O-O {[%emt 0:00:19]} 13. Qc2 {[%emt 0:03:34] C06: French Tarrasch: 3...Nf6 4 e5 Nfd7 5 Bd3 main lines} (13. Bh4 Nh5 14. Qc2 h6 15. Bh7+ Kh8 16. Bg6 Nf4 17. Nxf4 Rxf4 18. Bg3 Rxf3 19. gxf3 Qe7 20. Rad1 Bd7 21. Qc3 Rf8 22. Bb1 Kg8 {1-0 (41) Artemiev,V (2653)-Onischuk,V (2615) Martuni 2016}) 13... Nb4 {[%emt 0:09:28]} 14. Qxc7 {[%emt 0:03:44]} Bxc7 {[%emt 0:00:30]} 15. Bb1 {[%emt 0:04:53]} Bd7 {[%emt 0:11:51] LiveBook: 5 Games} 16. Nc3 {[%emt 0:08:34]} Bb6 $146 {[%emt 0:13:45]} ({Predecessor:} 16... a6 17. a3 Nc6 18. Bh4 Bb6 19. Rd1 h6 20. Bg3 Na5 {0-1 (96) Straka,J (2216)-Strebkovs,A (2420) Teplice 2009}) 17. h3 {[%emt 0:20:10]} Nc6 {[%emt 0:12:16]} 18. Be3 {[%emt 0:01:26]} Nh5 {[%emt 0:03:50]} 19. Rd1 {[%emt 0:03:14]} Nf4 {[%emt 0:07:02]} 20. Ne1 {[%emt 0:24:17]} Ne7 {[%emt 0:13:35]} 21. Bc2 {[%emt 0:08:00]} Nfg6 {[%emt 0:06:06]} 22. Ba4 {[%emt 0:01:51]} Bc6 {[%emt 0:03:43]} 23. Nd3 {[%emt 0:02:00]} Nf5 {[%emt 0:02:27]} 24. Nb4 {[%emt 0:01:02]} Be8 {[%emt 0:00:43]} 25. Rac1 {[%emt 0:03:11]} Ngh4 {[%emt 0:01:35]} 26. Bxe8 {[%emt 0:03:11]} Raxe8 {[%emt 0:00:14]} 27. Na4 {[%emt 0:00:51]} Nxe3 {[%emt 0:01:55]} 28. fxe3 {[%emt 0:00:03]} Ba5 {[%emt 0:00:15]} 29. Nc2 {[%emt 0:02:47]} Nf5 {[%emt 0:00:53]} 30. b4 {[%emt 0:01:52]} Bc7 {[%emt 0:01:23]} 31. Nc5 {[%emt 0:00:39]} Ng3 {[%emt 0:00:46]} 32. Re1 {[%emt 0:00:19]} b6 {[%emt 0:00:48]} 33. Nd3 {[%emt 0:00:36]} Bd6 {[%emt 0:00:32]} 34. Na3 {[%emt 0:00:21]} Rc8 {[%emt 0:01:02]} 35. Rxc8 {[%emt 0:00:41]} Rxc8 {[%emt 0:00:05]} 36. Rb1 {[%emt 0:00:36]} a6 {[%emt 0:01:43]} 37. Rb3 {[%emt 0:00:14]} Ne2+ {[%emt 0:01:46]} 38. Kf2 {[%emt 0:00:10]} Nc3 {[%emt 0:00:26]} 39. Ke1 {[%emt 0:01:06]} Nxa2 {[%emt 0:00:51]} 40. Kd2 {[%emt 0:00:19]} a5 {[%emt 0:00:30]} 41. bxa5 {[%emt 0:02:21]} bxa5 {[%emt 0:01:51]} 42. Nc2 {[%emt 0:11:45]} a4 {[%emt 0:03:36]} 43. Rb6 {[%emt 0:02:05]} Nc3 {[%emt 0:00:10]} 44. Ra6 {[%emt 0:02:42]} Ne4+ {[%emt 0:07:01]} 45. Kd1 {[%emt 0:02:56]} Kf7 {[%emt 0:11:25]} 46. Nb2 {[%emt 0:06:26]} Nc3+ {[%emt 0:05:52]} 47. Kc1 {[%emt 0:02:58]} Na2+ {[%emt 0:00:09]} 48. Kb1 {[%emt 0:00:28]} Nc3+ {[%emt 0:00:33]} 49. Kc1 {[%emt 0:00:32]} Na2+ {[%emt 0:02:10]} 50. Kb1 {[%emt 0:00:06]} Rxc2 {[%emt 0:00:06]} 51. Rxd6 {[%emt 0:01:59]} Rxg2 {[%emt 0:00:30]} 52. Kxa2 {[%emt 0:00:04]} Re2 {[%emt 0:00:04]} 53. Ra6 {[%emt 0:01:02]} Rxe3 {[%emt 0:00:08]} 54. h4 {[%emt 0:00:34]} Re4 {[%emt 0:00:24]} 55. Rxa4 {[%emt 0:00:05]} Rxh4 {[%emt 0:00:12]} 56. Nd3 {[%emt 0:00:17]} Re4 {[%emt 0:01:49]} 57. Kb3 {[%emt 0:00:11]} h5 {[%emt 0:00:09]} 58. Kc3 {[%emt 0:00:30]} h4 {[%emt 0:00:09]} 59. Ra7+ {[%emt 0:00:48]} Kg6 {[%emt 0:01:39]} 60. Nc5 {[%emt 0:00:54]} Rg4 {[%emt 0:00:35]} 61. Nxe6 {[%emt 0:01:05]} h3 {[%emt 0:00:32]} 62. Rxg7+ {[%emt 0:01:07]} Kf5 {[%emt 0:00:06]} 63. Rh7 {[%emt 0:00:41]} Rg3+ {[%emt 0:00:08]} 64. Kb4 {[%emt 0:00:33]} Kxe6 {[%emt 0:00:07]} 65. Rh5 {[%emt 0:00:22]} Kf6 {[%emt 0:02:35]} 66. Kc5 $11 {[%emt 0:00:03]} Ra3 1/2-1/2

[Event "CZE-tht Extraliga 2018-19"]
[Site "Czech Republic"]
[Date "2018.11.03"]
[Round "1"]
[White "Kawulok, Marek"]
[Black "Slampa, Jan"]
[Result "0-1"]
[ECO "B40"]
[WhiteElo "2215"]
[BlackElo "2231"]
[Annotator "NA"]
[PlyCount "82"]
[EventDate "2018.11.03"]
[EventType "team-tourn"]
[EventCountry "CZE"]
[SourceTitle "playchess.com"]
[Source "ChessBase"]
[SourceQuality "1"]
[WhiteTeam "Slavoj Cesky Tesín"]
[BlackTeam "Siesta Solution Unichess B"]
[TimeControl "40/5400+30:1800+30"]

1. e4 {[%emt 0:00:00]} c5 {[%emt 0:00:09]} 2. Nf3 {[%emt 0:00:00]} e6 {[%emt 0:00:04]} 3. d4 {[%emt 0:00:00]} cxd4 {[%emt 0:00:05]} 4. Nxd4 {[%emt 0:00:00]} Nc6 {[%emt 0:00:11]} 5. Nc3 {[%emt 0:00:00]} a6 {[%emt 0:00:09]} 6. Be2 {[%emt 0:01:20]} d6 {[%emt 0:00:42]} 7. O-O {[%emt 0:00:35]} Nf6 {[%emt 0:00:17]} 8. Be3 {[%emt 0:00:33]} Be7 {[%emt 0:00:19]} 9. f4 {[%emt 0:01:02]} O-O {[%emt 0:00:24]} 10. Kh1 {[%emt 0:01:16]} Bd7 {[%emt 0:06:10]} 11. Qe1 {[%emt 0:02:45]} Rc8 {[%emt 0:01:44]} 12. Qg3 {[%emt 0:06:42]} b5 {[%emt 0:10:23]} 13. a3 {[%emt 0:14:21]} Na5 {[%emt 0:04:57] B85: Sizilianisch (Scheveninger System)} 14. e5 {[%emt 0:16:40]} Ne8 {[%emt 0:04:51]} 15. f5 $146 {[%emt 0:03:31]} ({Vorgänger:} 15. Ne4 Nc4 16. Bxc4 Rxc4 17. c3 Qa8 18. Ng5 g6 19. Qh4 h5 20. Rae1 Ng7 21. Qg3 {0-1 (50) Deszczynski,A (2345)-Jakubowski,K (2515) Zgierz 2018}) 15... dxe5 {[%emt 0:07:31]} 16. fxe6 {[%emt 0:01:35]} exd4 {[%emt 0:03:53]} 17. exd7 {[%emt 0:00:10]} Qxd7 {[%emt 0:00:20]} 18. Rad1 {[%emt 0:04:14]} Bd6 {[%emt 0:00:17]} 19. Rxd4 {[%emt 0:01:21]} Nc6 {[%emt 0:12:52]} 20. Rd2 {[%emt 0:02:36]} Qe6 {[%emt 0:05:16]} 21. Bf4 {[%emt 0:03:41]} Bxf4 {[%emt 0:10:13]} 22. Qxf4 {[%emt 0:00:06]} Ne5 {[%emt 0:00:55]} 23. Rd5 {[%emt 0:05:43]} f6 {[%emt 0:01:04]} 24. Rfd1 {[%emt 0:01:41]} Nc7 {[%emt 0:08:03]} 25. Rd6 {[%emt 0:01:15]} Qe7 {[%emt 0:00:40]} 26. Qd4 {[%emt 0:03:01]} Qf7 {[%emt 0:05:06]} 27. Bd3 {[%emt 0:07:46]} Ne6 {[%emt 0:05:10]} 28. Qd5 {[%emt 0:01:00]} Nc5 {[%emt 0:03:35]} 29. Bf5 {[%emt 0:02:18]} Qxd5 {[%emt 0:02:11]} 30. Nxd5 {[%emt 0:01:03]} ({But not} 30. R1xd5 Rc7 $11) 30... Ra8 {[%emt 0:01:48]} 31. b4 {[%emt 0:05:00]} Na4 {[%emt 0:01:33]} 32. Nc7 {[%emt 0:00:18]} Nb2 {[%emt 0:00:58]} (32... Nc3 $16) 33. Nxa8 {[%emt 0:04:12]} Nxd1 {[%emt 0:00:08]} 34. Nc7 {[%emt 0:00:04]} Ne3 {[%emt 0:00:55]} 35. Be6+ {[%emt 0:00:04]} Kh8 {[%emt 0:00:06]} 36. Rxa6 {[%emt 0:00:24]} Rd8 {[%emt 0:01:39] [#]} 37. h3 {[%emt 0:00:36]} (37. Bd5 $1 $16 {[%mdl 512]}) 37... h5 {[%emt 0:00:46]} 38. Nxb5 $11 {[%emt 0:05:03]} Rd1+ {[%emt 0:01:22]} 39. Kh2 {[%emt 0:00:05]} Rd2 {[%emt 0:00:04]} 40. Kg3 {[%emt 0:05:25]} g5 {[%emt 0:00:04]} 41. Bd5 {[%emt 0:07:47]} Nf1# 0-1

[Event "CZE-tht Extraliga 2018-19"]
[Site "Czech Republic"]
[Date "2018.11.04"]
[Round "2"]
[White "Fedorov, Alexei"]
[Black "Vrbata, Zbynek"]
[Result "1-0"]
[ECO "C00"]
[WhiteElo "2568"]
[BlackElo "2339"]
[Annotator "RC"]
[PlyCount "147"]
[EventDate "2018.11.03"]
[EventType "team-tourn"]
[EventCountry "CZE"]
[SourceTitle "playchess.com"]
[Source "ChessBase"]
[SourceQuality "1"]
[WhiteTeam "Beskydská šachová škola"]
[BlackTeam "Siesta Solution Unichess B"]
[TimeControl "40/5400+30:1800+30"]

1. e4 {[%emt 0:00:00]} e6 {[%emt 0:00:00]} 2. d3 {[%emt 0:00:00]} d5 {[%emt 0:00:00]} 3. Qe2 {[%emt 0:00:00]} Nc6 {[%emt 0:04:32]} 4. Nf3 {[%emt 0:00:00]} dxe4 {[%emt 0:01:56]} 5. dxe4 {[%emt 0:00:00]} e5 {[%emt 0:01:50]} 6. c3 {[%emt 0:00:15]} Nf6 {[%emt 0:01:27]} 7. Qc2 {[%emt 0:03:46]} Bg4 {[%emt 0:03:28]} 8. Nbd2 {[%emt 0:01:22]} Bd6 {[%emt 0:05:47]} 9. Be2 {[%emt 0:00:20]} O-O {[%emt 0:00:53]} 10. Nc4 {[%emt 0:02:37]} h6 {[%emt 0:05:49]} 11. h3 {[%emt 0:02:51]} Bh5 {[%emt 0:06:51]} 12. Nh4 {[%emt 0:02:40]} Bxe2 {[%emt 0:01:09]} 13. Qxe2 {[%emt 0:00:04]} b5 {[%emt 0:02:35]} 14. Ne3 {[%emt 0:09:03]} Nxe4 {[%emt 0:06:33]} 15. Nhf5 {[%emt 0:11:15]} Nf6 {[%emt 0:07:30]} 16. Ng4 {[%emt 0:01:05]} Re8 {[%emt 0:13:27]} 17. Qxb5 {[%emt 0:17:24]} Nxg4 {[%emt 0:02:04]} 18. hxg4 {[%emt 0:04:22]} Ne7 {[%emt 0:02:54]} 19. Be3 {[%emt 0:02:50]} Rb8 {[%emt 0:04:53]} 20. Qe2 {[%emt 0:00:29]} Nd5 {[%emt 0:03:37]} 21. Kf1 {[%emt 0:06:02]} Nf4 {[%emt 0:03:26]} 22. Qc2 {[%emt 0:10:38]} Qd7 {[%emt 0:01:44]} 23. b3 {[%emt 0:01:13]} Qc6 {[%emt 0:05:05]} 24. Bxf4 {[%emt 0:03:31]} exf4 {[%emt 0:00:08]} 25. Rh3 {[%emt 0:00:41]} Be7 {[%emt 0:09:28]} 26. Nd4 {[%emt 0:02:35]} Qb6 {[%emt 0:01:50]} 27. Nf3 {[%emt 0:06:54]} Bf6 {[%emt 0:01:53]} 28. Rd1 {[%emt 0:01:49]} Rbd8 {[%emt 0:00:36]} 29. Rxd8 {[%emt 0:01:04]} Rxd8 {[%emt 0:00:03]} 30. Rh5 {[%emt 0:01:26]} Qd6 {[%emt 0:01:07]} 31. c4 {[%emt 0:00:49]} c6 {[%emt 0:01:24]} 32. Kg1 {[%emt 0:03:41]} Qd1+ {[%emt 0:00:49]} 33. Qxd1 {[%emt 0:00:03]} Rxd1+ {[%emt 0:00:01]} 34. Kh2 {[%emt 0:00:04]} g5 {[%emt 0:00:07]} 35. Rxh6 {[%emt 0:00:26]} Kg7 {[%emt 0:00:01]} 36. Rh5 {[%emt 0:00:53]} Kg6 {[%emt 0:00:04]} 37. g3 {[%emt 0:00:13]} fxg3+ {[%emt 0:00:32]} 38. Kxg3 {[%emt 0:00:45]} a5 {[%emt 0:00:45]} 39. Kg2 {[%emt 0:00:29]} Ra1 {[%emt 0:00:08]} 40. a4 {[%emt 0:00:49]} Rb1 {[%emt 0:00:26]} 41. Rh3 {[%emt 0:30:03]} Rb2 {[%emt 0:06:16]} 42. Nh2 {[%emt 0:00:00]} Be5 {[%emt 0:04:33]} 43. Nf1 {[%emt 0:00:00]} f5 {[%emt 0:03:46]} 44. Ne3 {[%emt 0:00:00]} fxg4 {[%emt 0:02:44]} 45. Nxg4 {[%emt 0:00:00]} Bd4 {[%emt 0:02:17]} 46. Rd3 {[%emt 0:00:00]} c5 {[%emt 0:01:31]} 47. Rf3 {[%emt 0:00:00]} Rb1 {[%emt 0:00:44]} 48. Nh2 {[%emt 0:00:00]} Be5 {[%emt 0:05:45]} 49. Rd3 {[%emt 0:00:00]} Rb2 {[%emt 0:03:01]} 50. Nf3 {[%emt 0:00:00]} Bf4 {[%emt 0:00:31]} 51. Kf1 {[%emt 0:00:41]} Kf6 {[%emt 0:02:20]} 52. Ne1 {[%emt 0:02:33]} Kg6 {[%emt 0:02:54]} 53. Rd5 {[%emt 0:03:03]} Rxb3 {[%emt 0:00:33]} 54. Nd3 {[%emt 0:00:17]} Ra3 {[%emt 0:01:06]} 55. Nxc5 {[%emt 0:02:01]} Rc3 {[%emt 0:00:27]} 56. Nd3 {[%emt 0:00:40]} Rxc4 {[%emt 0:00:25]} 57. Rxa5 {[%emt 0:00:19]} Kf6 {[%emt 0:01:00]} 58. Ke2 {[%emt 0:00:39]} Rc2+ {[%emt 0:00:21]} 59. Kf3 {[%emt 0:00:37]} Bd2 {[%emt 0:00:24]} 60. Rd5 {[%emt 0:01:14]} Ra2 {[%emt 0:00:10]} 61. Rd4 {[%emt 0:00:39]} Bc3 {[%emt 0:00:17]} 62. Rc4 {[%emt 0:00:10]} Bd2 {[%emt 0:00:07]} 63. Ke4 {[%emt 0:00:27]} Ra3 {[%emt 0:00:30]} 64. Rc6+ {[%emt 0:00:10]} Ke7 {[%emt 0:00:08]} 65. Ra6 {[%emt 0:00:09]} Bc3 {[%emt 0:00:57]} 66. f3 {[%emt 0:00:54]} Bd2 {[%emt 0:00:12]} 67. Ne5 {[%emt 0:00:24]} Re3+ {[%emt 0:00:28]} 68. Kd5 {[%emt 0:00:33]} Kf8 {[%emt 0:00:36]} 69. Rf6+ {[%emt 0:00:29]} Kg7 {[%emt 0:00:16]} 70. Rg6+ {[%emt 0:00:28]} Kh7 {[%emt 0:00:07]} 71. Rxg5 {[%emt 0:00:20]} Bc3 {[%emt 0:01:22]} 72. f4 {[%emt 0:00:28]} Re1 {[%emt 0:00:20]} 73. Rg3 {[%emt 0:00:28]} Bd2 {[%emt 0:00:11]} 74. Nf3 1-0

[Event "CZE-tht Extraliga 2018-19"]
[Site "Czech Republic"]
[Date "2018.11.04"]
[Round "2"]
[White "Shengelia, David"]
[Black "Smirin, Ilia"]
[Result "1/2-1/2"]
[ECO "E62"]
[WhiteElo "2512"]
[BlackElo "2594"]
[Annotator "RC"]
[PlyCount "83"]
[EventDate "2018.11.03"]
[EventType "team-tourn"]
[EventCountry "CZE"]
[SourceTitle "playchess.com"]
[Source "ChessBase"]
[SourceQuality "1"]
[WhiteTeam "ŠK DURAS BVK Královo Pole"]
[BlackTeam "GASCO Pardubice"]
[TimeControl "40/5400+30:1800+30"]

1. d4 {[%emt 0:00:00]} Nf6 {[%emt 0:00:00]} 2. c4 {[%emt 0:00:00]} g6 {[%emt 0:00:00]} 3. Nf3 {[%emt 0:00:11]} Bg7 {[%emt 0:00:12]} 4. g3 {[%emt 0:00:27]} O-O {[%emt 0:00:14]} 5. Bg2 {[%emt 0:00:04]} d6 {[%emt 0:00:03]} 6. O-O {[%emt 0:00:49]} Nc6 {[%emt 0:00:07]} 7. Nc3 {[%emt 0:00:24]} Bf5 {[%emt 0:00:32]} 8. d5 {[%emt 0:02:00]} Na5 {[%emt 0:00:09]} 9. Nd4 {[%emt 0:00:58]} Bd7 {[%emt 0:00:12]} 10. b3 {[%emt 0:00:28]} c5 {[%emt 0:00:30]} 11. dxc6 {[%emt 0:00:23]} bxc6 {[%emt 0:00:07]} 12. e4 {[%emt 0:00:15]} Qc8 {[%emt 0:02:17]} 13. Re1 {[%emt 0:06:09]} e5 {[%emt 0:02:14]} 14. Nc2 {[%emt 0:12:47]} Nb7 {[%emt 0:00:07]} 15. Ba3 {[%emt 0:06:10]} Rd8 {[%emt 0:01:36]} 16. Ne3 {[%emt 0:02:46]} Bh3 {[%emt 0:02:12]} 17. Bxh3 {[%emt 0:04:54]} Qxh3 {[%emt 0:00:08]} 18. Qf3 {[%emt 0:00:07]} h5 {[%emt 0:07:21]} 19. Rad1 {[%emt 0:01:20]} Nh7 {[%emt 0:00:58]} 20. Qg2 {[%emt 0:15:37]} Qc8 {[%emt 0:02:32]} 21. h4 {[%emt 0:13:28]} Nf8 {[%emt 0:01:39]} 22. g4 {[%emt 0:00:59]} Ne6 {[%emt 0:00:31]} 23. Ne2 {[%emt 0:00:08]} Nf4 {[%emt 0:18:23]} 24. Qg3 {[%emt 0:05:34]} Bh6 {[%emt 0:00:49]} 25. g5 {[%emt 0:01:53]} Nxe2+ {[%emt 0:02:30]} 26. Rxe2 {[%emt 0:00:03]} Bf8 {[%emt 0:01:24]} 27. Red2 {[%emt 0:05:47]} Qc7 {[%emt 0:04:55]} 28. c5 {[%emt 0:02:55]} Nxc5 {[%emt 0:06:09]} 29. Bxc5 {[%emt 0:00:34]} dxc5 {[%emt 0:00:07]} 30. Rxd8 {[%emt 0:01:46]} Rxd8 {[%emt 0:00:06]} 31. Rxd8 {[%emt 0:00:04]} Qxd8 {[%emt 0:00:04]} 32. Qxe5 {[%emt 0:00:13]} Qd3 {[%emt 0:07:28]} 33. Kg2 {[%emt 0:06:46]} Qb1 {[%emt 0:00:30]} 34. Qe8 {[%emt 0:03:28]} Qxa2 {[%emt 0:00:28]} 35. Qxc6 {[%emt 0:00:37]} Qxb3 {[%emt 0:00:06]} 36. Nd5 {[%emt 0:00:19]} Qb8 {[%emt 0:19:18]} 37. Nf6+ {[%emt 0:00:09]} Kg7 {[%emt 0:00:31]} 38. Ne8+ {[%emt 0:00:29]} Kh8 {[%emt 0:00:32]} 39. Qd7 {[%emt 0:03:26]} Qf4 {[%emt 0:03:10]} 40. Nf6 {[%emt 0:00:19]} Kg7 {[%emt 0:00:06]} 41. Ne8+ {[%emt 0:30:19]} Kh8 {[%emt 0:30:12]} 42. Nf6 {[%emt 0:00:16]} 1/2-1/2

[Event "CZE-tht Extraliga 2018-19"]
[Site "Czech Republic"]
[Date "2018.11.04"]
[Round "2"]
[White "UNA6 Svoboda Svatopluk FM"]
[Black "LAB9 Talla Vladimir GM"]
[Result "1/2-1/2"]
[ECO "C47"]
[WhiteElo "2438"]
[BlackElo "2402"]
[Annotator "NA"]
[PlyCount "23"]
[EventDate "2018.11.03"]
[EventType "team-tourn"]
[EventCountry "CZE"]
[SourceTitle "playchess.com"]
[Source "ChessBase"]
[SourceQuality "1"]
[TimeControl "40/5400+30:1800+30"]

1. e4 {[%emt 0:00:00]} e5 {[%emt 0:00:00]} 2. Nf3 {[%emt 0:00:00]} Nf6 {[%emt 0:00:00]} 3. Nc3 {[%emt 0:00:00]} Nc6 {[%emt 0:00:00]} 4. d4 {[%emt 0:00:36]} exd4 {[%emt 0:00:04]} 5. Nxd4 {[%emt 0:00:10]} Bb4 {[%emt 0:00:05]} 6. Nxc6 {[%emt 0:00:31]} bxc6 {[%emt 0:01:11]} 7. Bd3 {[%emt 0:00:07]} d5 {[%emt 0:00:05]} 8. exd5 {[%emt 0:00:17]} cxd5 {[%emt 0:02:58]} 9. O-O {[%emt 0:00:06]} O-O {[%emt 0:00:05]} 10. Qf3 {[%emt 0:04:52]} c6 {[%emt 0:11:13]} 11. h3 {[%emt 0:00:22]} Re8 {[%emt 0:00:36]} 12. Bg5 {[%emt 0:00:37]} 1/2-1/2

[Event "CZE-tht Extraliga 2018-19"]
[Site "Czech Republic"]
[Date "2018.11.04"]
[Round "2"]
[White "Suran, Jan"]
[Black "Kawulok, Marek"]
[Result "1/2-1/2"]
[ECO "C49"]
[WhiteElo "2420"]
[BlackElo "2215"]
[Annotator "NA"]
[PlyCount "46"]
[EventDate "2018.11.03"]
[EventType "team-tourn"]
[EventCountry "CZE"]
[SourceTitle "playchess.com"]
[Source "ChessBase"]
[SourceQuality "1"]
[WhiteTeam "Výstavište Lysá nad Labem"]
[BlackTeam "Slavoj Ceský Tešín"]
[TimeControl "40/5400+30:1800+30"]

1. e4 {[%emt 0:00:00]} e5 {[%emt 0:00:00]} 2. Nf3 {[%emt 0:00:30]} Nc6 {[%emt 0:00:30]} 3. Nc3 {[%emt 0:00:30]} Nf6 {[%emt 0:00:30]} 4. Bb5 {[%emt 0:00:30]} Bb4 {[%emt 0:00:30]} 5. O-O {[%emt 0:00:30]} O-O {[%emt 0:00:30]} 6. d3 {[%emt 0:00:30]} Bxc3 {[%emt 0:05:10]} 7. bxc3 {[%emt 0:00:25]} d6 {[%emt 0:00:06]} 8. Bg5 {[%emt 0:07:00]} Qe7 {[%emt 0:03:03]} 9. Re1 {[%emt 0:02:21]} Nd8 {[%emt 0:03:03]} 10. d4 {[%emt 0:00:45]} Ne6 {[%emt 0:00:20]} 11. Bc1 {[%emt 0:00:21]} c6 {[%emt 0:05:05]} 12. Bf1 {[%emt 0:01:33]} Qc7 {[%emt 0:00:10]} 13. g3 $11 {[%emt 0:11:40]} Re8 {[%emt 0:17:01]} 14. Bg2 {[%emt 0:11:03]} c5 {[%emt 0:07:41]} 15. d5 {[%emt 0:04:46]} Nf8 {[%emt 0:00:06]} 16. Bg5 {[%emt 0:03:25]} Ng6 {[%emt 0:08:53]} 17. Nd2 {[%emt 0:13:50]} Qe7 {[%emt 0:03:52]} 18. h3 {[%emt 0:02:16]} h6 {[%emt 0:06:20]} 19. Be3 {[%emt 0:00:19]} Nh7 {[%emt 0:00:07]} 20. Qh5 {[%emt 0:05:50]} Nf6 {[%emt 0:03:09]} 21. Qe2 {[%emt 0:00:05]} Nh7 {[%emt 0:00:05]} 22. Qh5 {[%emt 0:01:30]} Nf6 {[%emt 0:00:06]} 23. Qe2 {[%emt 0:00:05]} Nh7 {[%emt 0:00:17]} 1/2-1/2

[Event "CZE-tht Extraliga 2018-19"]
[Site "Czech Republic"]
[Date "2018.11.04"]
[Round "2"]
[White "Szotkowski, Jakub"]
[Black "Bartos, Jan"]
[Result "1-0"]
[ECO "E04"]
[WhiteElo "2348"]
[BlackElo "2217"]
[Annotator "NA"]
[PlyCount "77"]
[EventDate "2018.11.03"]
[EventType "team-tourn"]
[EventCountry "CZE"]
[SourceTitle "playchess.com"]
[Source "ChessBase"]
[SourceQuality "1"]
[WhiteTeam "Beskydská šachová škola"]
[BlackTeam "Siesta Solution Unichess B"]
[TimeControl "40/5400+30:1800+30"]

1. d4 {[%emt 0:00:00]} Nf6 {[%emt 0:00:00]} 2. c4 {[%emt 0:00:15]} e6 {[%emt 0:00:00]} 3. g3 {[%emt 0:00:23]} d5 {[%emt 0:00:00]} 4. Bg2 {[%emt 0:00:10]} dxc4 {[%emt 0:01:47]} 5. Nf3 {[%emt 0:00:25]} a6 {[%emt 0:00:09]} 6. O-O {[%emt 0:00:28]} Nc6 {[%emt 0:00:07]} 7. a4 {[%emt 0:07:07]} Rb8 {[%emt 0:06:07]} 8. Nc3 {[%emt 0:09:08]} Be7 {[%emt 0:16:38] LiveBook: 14 Games} 9. e4 {[%emt 0:00:27]} O-O {[%emt 0:02:11]} 10. Bf4 $15 {[%emt 0:09:58]} b5 {[%emt 0:03:19]} 11. axb5 {[%emt 0:05:29]} axb5 {[%emt 0:00:43]} 12. Qe2 {[%emt 0:00:34]} Nxd4 {[%emt 0:04:29]} 13. Nxd4 {[%emt 0:00:23]} Qxd4 {[%emt 0:00:05]} 14. Bxc7 {[%emt 0:00:33]} Rb7 {[%emt 0:05:40]} 15. Bf4 {[%emt 0:03:24]} e5 {[%emt 0:04:09]} 16. Rfd1 {[%emt 0:12:17]} Qc5 {[%emt 0:00:14]} 17. Be3 {[%emt 0:00:12]} Qc7 {[%emt 0:00:49]} 18. Ra6 {[%emt 0:09:24]} Bg4 {[%emt 0:06:10]} 19. Bf3 {[%emt 0:04:27]} Bd7 {[%emt 0:05:07]} 20. h4 {[%emt 0:03:54]} b4 {[%emt 0:01:31]} 21. Nd5 {[%emt 0:01:39]} Nxd5 {[%emt 0:00:06]} 22. exd5 {[%emt 0:00:09]} Bd6 {[%emt 0:00:16]} 23. Rda1 {[%emt 0:10:03]} c3 {[%emt 0:11:59]} 24. Ra7 {[%emt 0:03:05]} Rfb8 {[%emt 0:01:09]} 25. Rxb7 {[%emt 0:02:57]} Rxb7 {[%emt 0:00:18]} 26. Rc1 {[%emt 0:02:04]} Qa5 {[%emt 0:02:32]} 27. bxc3 {[%emt 0:05:31]} bxc3 {[%emt 0:00:16]} 28. Qe1 {[%emt 0:00:53]} Rc7 {[%emt 0:01:00]} 29. Ra1 {[%emt 0:01:07]} Qb4 {[%emt 0:01:15]} 30. Rb1 {[%emt 0:02:04]} Qc4 {[%emt 0:03:30]} 31. Rb6 {[%emt 0:00:10]} Ba3 {[%emt 0:03:14]} 32. d6 {[%emt 0:00:20]} Rc8 {[%emt 0:00:34]} 33. Bb7 {[%emt 0:01:38]} Rb8 {[%emt 0:03:39]} 34. Ba6 {[%emt 0:01:35]} Rxb6 {[%emt 0:04:39]} 35. Bxc4 {[%emt 0:00:07]} c2 {[%emt 0:00:10]} 36. Qa5 {[%emt 0:00:58]} Rb1+ {[%emt 0:00:35]} 37. Kh2 {[%emt 0:00:06]} h6 {[%emt 0:02:18]} 38. Qd8+ {[%emt 0:00:51]} Kh7 {[%emt 0:00:09]} 39. Qxd7 {[%emt 0:00:14]} 1-0

[Event "CZE-tht Extraliga 2018-19"]
[Site "Czech Republic"]
[Date "2018.11.04"]
[Round "2"]
[White "Obsivac, Josef"]
[Black "Vlasak, Lukas"]
[Result "1/2-1/2"]
[ECO "D37"]
[WhiteElo "2264"]
[BlackElo "2399"]
[Annotator "NA"]
[PlyCount "37"]
[EventDate "2018.11.03"]
[EventType "team-tourn"]
[EventCountry "CZE"]
[SourceTitle "playchess.com"]
[Source "ChessBase"]
[SourceQuality "1"]
[WhiteTeam "Moravská Slavia Brno"]
[BlackTeam "ŠK ZIKUDA Turnov"]
[TimeControl "40/5400+30:1800+30"]

1. d4 {[%emt 0:00:00]} Nf6 {[%emt 0:00:00]} 2. c4 {[%emt 0:00:00]} e6 {[%emt 0:00:00]} 3. Nf3 {[%emt 0:00:00]} d5 {[%emt 0:00:00]} 4. Nc3 {[%emt 0:00:20]} Be7 {[%emt 0:00:07]} 5. Bg5 {[%emt 0:00:34]} Nbd7 {[%emt 0:01:41]} 6. Qc2 {[%emt 0:04:13]} h6 {[%emt 0:03:00]} 7. cxd5 {[%emt 0:10:42]} exd5 {[%emt 0:06:04]} 8. Bh4 {[%emt 0:02:23]} c6 {[%emt 0:01:32]} 9. e3 {[%emt 0:00:16]} Nh5 {[%emt 0:00:26]} 10. Bxe7 {[%emt 0:01:30]} Qxe7 {[%emt 0:00:46]} 11. O-O-O {[%emt 0:01:19]} Nb6 {[%emt 0:01:16]} 12. h3 {[%emt 0:01:23]} Be6 {[%emt 0:05:56]} 13. Bd3 {[%emt 0:07:18]} O-O-O {[%emt 0:01:12]} 14. Nd2 {[%emt 0:02:21]} Nf6 {[%emt 0:03:12]} 15. Kb1 {[%emt 0:05:31]} Kb8 {[%emt 0:00:30]} 16. Rc1 {[%emt 0:01:57]} h5 {[%emt 0:12:41]} 17. Nb3 {[%emt 0:13:29]} Nfd7 {[%emt 0:07:52]} 18. h4 {[%emt 0:06:39]} Rc8 {[%emt 0:05:50]} 19. Ne2 {[%emt 0:04:10]} 1/2-1/2